Cogmind - Beta 13 @@@ ROGUE MODE // 2024.03.22 @ 19:22:03 Player: Oldman Pu Result: Self-destructed Performance ------------- Evolutions (2) 1000 Regions Visited (7) 1400 Robots Destroyed (100) 500 Value Destroyed (2404) 2404 Prototype IDs (8) 160 Alien Tech Used (0) 0 Bonus (87) 87 TOTAL SCORE: 5551 Bonus ------- High Alert Combat Kills 87 Cogmind --------- Core Integrity 170/550 Matter 242/300 Energy 92/280 System Corruption 0% Temperature Cool (-100) Movement Core (950) Ox18 Location -8/Materials Parts ------- > --- POWER (1) -------- Cooled Ion Engine > --- PROPULSION (3) --- (None) > --- UTILITY (5) ------ Cryofiber Web Improved Heat Sink High-capacity Storage Unit > --- WEAPON (2) ------- Heavy Assault Rifle Heavy Assault Rifle > --- INVENTORY (20) --- Light Angular Momentum Engine Cryofiber Web Improved Heat Sink High-capacity Battery (250) High-capacity Matter Pod (200) Improved Targeting Computer Advanced Beam Cannon Peak State ------------ > --- POWER ------------ Heavy Ion Engine > --- PROPULSION ------- Wheel Wheel Wheel > --- UTILITY ---------- Cryofiber Web High-capacity Storage Unit Experimental Sensor Array Improved Targeting Computer Hardened Light Armor Plating > --- WEAPON ----------- Advanced Beam Cannon Heavy Assault Rifle > --- INVENTORY -------- Cooled Ion Engine Light Angular Momentum Engine Wheel Cryofiber Web Cryofiber Web Cryofiber Web Improved Heat Sink High-capacity Battery High-capacity Matter Pod Improved Targeting Computer Medium Armor Plating Heavy Laser Advanced Beam Cannon Advanced Beam Cannon Heavy Assault Rifle Heavy Assault Rifle [Rating: 32] Favorites ----------- Power Heavy Ion Engine Engine Heavy Ion Engine Propulsion Wheel Wheel Wheel Utility High-capacity Storage Unit Device Cryofiber Web Storage High-capacity Storage Unit Processor Targeting Computer Protection Light Armor Plating Weapon Improved Medium Laser Energy Gun Improved Medium Laser Energy Cannon Advanced Beam Cannon Ballistic Gun Heavy Assault Rifle Build | -11 -10 -10 -9 -9 -9 -8 -8 ------- Run | Yrd Mat Min Mat Min Exi Min Mat Slots Evolved 4 | . . . 2 . . . 2 Power . | . . . . . . . . Propulsion 1 | . . . . . . . 1 Utility 3 | . . . 2 . . . 1 Weapon . | . . . . . . . . Parts Attached 74 | 5 12 2 33 1 2 3 16 Power 10 | 1 1 1 5 . 1 . 1 Engine 10 | 1 1 1 5 . 1 . 1 Core . | . . . . . . . . Reactor . | . . . . . . . . Propulsion 16 | 2 4 1 6 . . 1 2 Treads . | . . . . . . . . Leg . | . . . . . . . . Wheel 16 | 2 4 1 6 . . 1 2 Hover . | . . . . . . . . Flight . | . . . . . . . . Utility 27 | . 5 . 13 1 1 . 7 Device 9 | . . . 5 . . . 4 Storage 6 | . 4 . 1 . 1 . . Processor 2 | . 1 . 1 . . . . Hackware . | . . . . . . . . Protection 10 | . . . 6 1 . . 3 Artifact . | . . . . . . . . Weapon 21 | 2 2 . 9 . . 2 6 Energy Gun 8 | 1 . . 5 . . . 2 Energy Cannon 4 | . . . 1 . . 1 2 Ballistic Gun 9 | 1 2 . 3 . . 1 2 Ballistic Cannon . | . . . . . . . . Launcher . | . . . . . . . . Special Weapon . | . . . . . . . . Impact Weapon . | . . . . . . . . Slashing Weapon . | . . . . . . . . Piercing Weapon . | . . . . . . . . Special Melee Weapon . | . . . . . . . . Unidentified Prototypes 6 | . . . 6 . . . . Parts Lost 29 | . 3 2 5 1 . 2 16 Power 2 | . . 1 . . . . 1 Propulsion 10 | . 3 1 2 . . . 4 Utility 10 | . . . 2 1 . . 7 Weapon 7 | . . . 1 . . 2 4 Highest Loss Streak 12 | . 2 2 2 1 . 2 12 To Critical Strikes . | . . . . . . . . Average Slot Usage (%) 97 | . 97 95 98 99 100 99 88 Engine 11 | . 14 11 11 11 11 11 8 Wheel 22 | . 26 26 21 22 22 22 18 Device 5 | . . . 5 11 11 11 16 Storage 11 | . 13 14 11 11 11 11 9 Processor 11 | . 13 14 11 11 11 11 8 Protection 9 | . . . 16 10 11 11 9 Energy Gun 11 | . 7 . 17 22 22 9 . Energy Cannon 1 | . . . . . . 5 8 Ballistic Gun 10 | . 20 28 3 . . 5 8 Naked Turns . | . . . . . . . . Heaviest Build 89 | 7 89 51 60 62 62 63 66 Greatest Support 30 | 26 26 20 20 20 20 20 30 Greatest Overweight (x) 19 | . 16 4 19 3 3 3 6 Average Overweight (x) 2 | . 1 2 2 2 3 3 2 Largest Inventory Capacity 25 | 5 25 20 20 20 20 20 20 Average Capacity 19 | 5 17 20 20 20 20 20 20 Most Carried 20 | 4 14 16 20 20 20 20 19 Average Carried 16 | 1 9 13 18 19 20 19 15 Final Capacity 20 | 5 20 20 20 20 20 20 20 Final Carried 20 | 2 14 16 20 20 20 20 7 Class Distribution -------------------- 99% | Mutant Dominant Class ---------------- Mutant | -10/Materials Mutant | -10/Mines Mutant | -9/Materials Mutant | -9/Mines Mutant | -9/Exiles Mutant | -8/Mines Mutant | -8/Materials Resources | -11 -10 -10 -9 -9 -9 -8 -8 ----------- Run | Yrd Mat Min Mat Min Exi Min Mat Matter Collected 1753 | 180 322 76 862 20 39 57 197 Remotely . | . . . . . . . . Salvage Created 3498 | . 496 131 1812 151 51 264 593 Parts 207 | . 43 12 106 6 2 16 22 Haulers Intercepted 9 | . 2 . 6 . . . 1 Recyclers Shooed 1 | . . . . . . . 1 Parts Field Recycled . | . . . . . . . . Retrieved Matter . | . . . . . . . . Parts Self-Destructed . | . . . . . . . . Prevented . | . . . . . . . . Kills | -11 -10 -10 -9 -9 -9 -8 -8 ------- Run | Yrd Mat Min Mat Min Exi Min Mat Combat Hostiles Destroyed 69 | . 10 5 32 5 1 8 8 Guns 62 | . 10 5 31 4 1 7 4 Cannons 5 | . . . . . . 1 4 Classes Destroyed 13 | . 6 . 4 . 1 2 . Worker 6 | . 1 . 5 . . . . Builder 2 | . . . 2 . . . . Tunneler 1 | . . . . . . 1 . Hauler 9 | . 2 . 6 . . . 1 Recycler 2 | . . . . . . 1 1 Operator 2 | . 1 . 1 . . . . Watcher 9 | . 3 . 5 . . . 1 Swarmer 23 | . 3 3 8 3 . 6 . Grunt 27 | . 7 2 12 . . 2 4 Brawler 1 | . . . 1 . . . . Duelist 1 | . . . 1 . . . . Sentry 16 | . . . 10 2 . . 4 Hunter 1 | . . . . . 1 . . Best Kill Streak 7 | . 7 3 6 3 1 4 5 Combat Bots Only 6 | . 6 3 4 3 1 3 3 Max Kills in Single Turn 2 | . 1 1 2 2 1 2 1 Gunslinging 1 | . . . 1 1 . 1 . Exploded . | . . . . . . . . Melee . | . . . . . . . . Uniques/NPCs Destroyed . | . . . . . . . . Combat | -11 -10 -10 -9 -9 -9 -8 -8 -------- Run | Yrd Mat Min Mat Min Exi Min Mat Hostile Shots Fired 366 | . 40 19 119 25 . 44 119 Missed 89 | . 4 3 43 6 . 10 23 Damage Taken 4064 | . 408 174 937 260 . 375 1910 Core 759 | . 90 40 182 24 . 43 380 Absorbed by Shields . | . . . . . . . . Redirected to Shielding 18 | . . . 18 . . . . Regen/Repaired (Parts) 80 | . . . 80 . . . . Core Remaining (%) 61 | 100 . 48 . . . 37 . Volleys Fired 254 | . 42 11 111 9 2 23 56 Largest 2 | . 2 2 2 2 2 2 2 Hottest 112 | . 70 46 112 112 112 112 91 Shots Fired 498 | . 84 22 221 18 5 44 104 Gun 436 | . 84 22 217 18 5 35 55 Cannon 62 | . . . 4 . . 9 49 Launcher . | . . . . . . . . Special . | . . . . . . . . Kinetic 207 | . 49 22 72 . . 9 55 Thermal 291 | . 35 . 149 18 5 35 49 Explosive . | . . . . . . . . Electromagnetic . | . . . . . . . . Robot Hit Streak 23 | . 13 11 16 23 3 13 14 Robot Miss Streak 7 | . 5 6 3 . 2 7 4 Penetration Max . | . . . . . . . . Secondary Targets 10 | . 2 1 4 1 . 2 . Max Gunslinging Chain 1 | . 1 1 1 1 . 1 . Shots Hit Robots 336 | . 53 10 152 17 3 26 75 Core Hits 144 | . 29 6 65 6 1 13 24 Critical Kills 1 | . . . . . . 1 . Critical Parts Destroyed 1 | . . . 1 . . . . Critical Strikes 22 | . 6 . 11 2 . 3 . Burn 20 | . 6 . 10 2 . 2 . Meltdown 1 | . . . . . . 1 . Destroy 1 | . . . 1 . . . . Melee Attacks . | . . . . . . . . Impact . | . . . . . . . . Slashing . | . . . . . . . . Piercing . | . . . . . . . . Sneak Attacks . | . . . . . . . . Combat Hostiles . | . . . . . . . . Follow-up Attacks . | . . . . . . . . Damage Inflicted 5624 | . 716 165 2594 285 51 511 1302 Guns 4768 | . 716 165 2574 285 51 335 642 Cannons 802 | . . . 20 . . 122 660 Explosions 54 | . . . . . . 54 . Melee . | . . . . . . . . Ramming . | . . . . . . . . Kinetic 2264 | . 440 165 888 . . 129 642 Thermal 3360 | . 276 . 1706 285 51 382 660 Explosive . | . . . . . . . . Electromagnetic . | . . . . . . . . Impact . | . . . . . . . . Slashing . | . . . . . . . . Piercing . | . . . . . . . . Highest Corruption 5 | . . . 5 5 5 5 . Average Corruption 5 | . . . 5 5 5 5 . Corruption Purged . | . . . . . . . . Corruption Blocked . | . . . . . . . . Effects 83 | . . . 55 7 11 10 . Message Errors 22 | . . . 11 5 2 4 . Matter Fused 16 | . . . 14 . 2 . . Heat Flow Errors 8 | . . . 6 . 1 1 . Energy Discharges 16 | . . . 10 2 2 2 . Data Loss (minor) 10 | . . . 6 . 2 2 . Data Loss (major) 4 | . . . 3 . 1 . . Misfires 3 | . . . 2 . 1 . . Alerts 1 | . . . 1 . . . . Weapon Failures 3 | . . . 2 . . 1 . Overload Shots . | . . . . . . . . Overflow Damage . | . . . . . . . . Projectiles . | . . . . . . . . Explosions . | . . . . . . . . Melee . | . . . . . . . . Knockbacks . | . . . . . . . . Impact . | . . . . . . . . Kinetic . | . . . . . . . . Secondary . | . . . . . . . . Self-Inflicted Damage 47 | . . . . . . 47 . Shots 1 | . . . . . . 1 . Rammed . | . . . . . . . . Targets Rammed . | . . . . . . . . Kicked . | . . . . . . . . Crushed . | . . . . . . . . Highest Temperature 495 | . 207 22 320 323 110 495 308 Average Temperature 97 | . 71 11 79 159 54 166 117 Received Heat Transfer 1398 | . 207 72 354 72 . 54 639 Effects 7 | . . . 1 . . 2 4 Energy Bleed 2 | . . . . . . 1 1 Interference 3 | . . . . . . . 3 Damage (minor) 2 | . . . 1 . . 1 . Siege Activations . | . . . . . . . . Robots Corrupted . | . . . . . . . . Combat Hostiles . | . . . . . . . . Parts Fried . | . . . . . . . . Impact Corruptions . | . . . . . . . . Robots Melted 4 | . . . 2 1 . 1 . Combat Hostiles 2 | . . . 1 1 . . . Parts Melted 35 | . 1 . 21 4 . 6 3 Heat Transferred 8634 | . 1258 . 4440 777 111 864 1184 Parts Sabotaged . | . . . . . . . . Parts Stolen . | . . . . . . . . Parts Stripped . | . . . . . . . . Power Chain Reactions . | . . . . . . . . Alert | -11 -10 -10 -9 -9 -9 -8 -8 ------- Run | Yrd Mat Min Mat Min Exi Min Mat Peak Influence 509 | . 209 122 509 313 . 254 376 Initial 198 | . . 22 . 198 . . 98 Average 208 | . 88 23 333 223 . 169 224 Maximum Alert Level 2 | . 1 . 2 1 . 1 1 Low Security (%) 54 | 100 97 100 17 63 . 62 47 Level 1 31 | . 2 . 50 36 . 37 52 Level 2 14 | . . . 31 . . . . Level 3 . | . . . . . . . . Level 4 . | . . . . . . . . Level 5 . | . . . . . . . . High Security . | . . . . . . . . Max Security . | . . . . . . . . Squads Dispatched 6 | . 1 . 3 . . . 2 Investigation 2 | . . . 2 . . . . Extermination . | . . . . . . . . Reinforcement 4 | . 1 . 1 . . . 2 Assault . | . . . . . . . . Garrison . | . . . . . . . . Intercept . | . . . . . . . . Searches Triggered . | . . . . . . . . Construction Impeded . | . . . . . . . . Haulers Reinforced . | . . . . . . . . Active Scanning Responses . | . . . . . . . . Cargo Convoy Interrupts . | . . . . . . . . Stealth | -11 -10 -10 -9 -9 -9 -8 -8 --------- Run | Yrd Mat Min Mat Min Exi Min Mat Distress Signals 6 | . 1 . 3 . . . 2 Communications Jammed . | . . . . . . . . Distress Signals . | . . . . . . . . Times Spotted 96 | . 15 7 40 5 . 10 19 Peak Tracking Total 9 | . 4 4 7 3 . 3 9 Tactical Retreats 4 | . . . 2 . . 1 1 Traps | -11 -10 -10 -9 -9 -9 -8 -8 ------- Run | Yrd Mat Min Mat Min Exi Min Mat Traps Triggered 1 | . . . 1 . . . . Indirectly . | . . . . . . . . Trap Hack Attempts . | . . . . . . . . Triggered . | . . . . . . . . Disarmed . | . . . . . . . . Reprogrammed . | . . . . . . . . Reused . | . . . . . . . . Traps Extracted . | . . . . . . . . Installed . | . . . . . . . . Triggered . | . . . . . . . . Machines | -11 -10 -10 -9 -9 -9 -8 -8 ---------- Run | Yrd Mat Min Mat Min Exi Min Mat Machines Disabled 4 | . . . 3 . . 1 . Max in Single Turn 1 | . . . 1 . . 1 . Machines Repaired . | . . . . . . . . Machines Dismantled . | . . . . . . . . Machines Sabotaged . | . . . . . . . . Overloaded Fab Kills . | . . . . . . . . Hacking | -11 -10 -10 -9 -9 -9 -8 -8 --------- Run | Yrd Mat Min Mat Min Exi Min Mat Machines Accessed 31 | . 7 1 15 . 1 . 7 Terminals 20 | . 5 . 10 . . . 5 Fabricators . | . . . . . . . . Repair Stations 2 | . . . 2 . . . . Recycling Units 5 | . 2 . 1 . . . 2 Scanalyzers 2 | . . . 2 . . . . Garrison Access . | . . . . . . . . Total Hacks 99 | . 13 1 51 . 23 . 11 Successful 70 | . 8 1 30 . 23 . 8 Failed 29 | . 5 . 21 . . . 3 Catastrophic 2 | . . . 2 . . . . Database Lockouts . | . . . . . . . . Manual . | . . . . . . . . Terminals 43 | . 11 . 24 . . . 8 Fabricators . | . . . . . . . . Repair Stations 12 | . . . 12 . . . . Recycling Units 8 | . 2 . 3 . . . 3 Scanalyzers 12 | . . . 12 . . . . Garrison Access . | . . . . . . . . Terminal Hacks 46 | . 6 1 10 . 23 . 6 Record 34 | . 3 . 7 . 23 . 1 Prototype ID Bank 1 | . . . 1 . . . . Open Door 1 | . . 1 . . . . . Emergency Access Points 3 | . . . . . . . 3 Repair Station Index 1 | . 1 . . . . . . Locate Traps 2 | . 1 . . . . . 1 Maintenance Status 1 | . . . 1 . . . . Hauler Manifests 2 | . . . 1 . . . 1 Zone Layout 1 | . 1 . . . . . . Fabricator Hacks . | . . . . . . . . Repair Station Hacks 8 | . . . 8 . . . . Scan Component 5 | . . . 5 . . . . Repair 3 | . . . 3 . . . . Recycling Unit Hacks 5 | . 2 . 1 . . . 2 Report Inventory 5 | . 2 . 1 . . . 2 Scanalyzer 11 | . . . 11 . . . . Insert Component 5 | . . . 5 . . . . Analyze 6 | . . . 6 . . . . Garrison Access Hacks . | . . . . . . . . Unauthorized Hacks . | . . . . . . . . Terminals . | . . . . . . . . Fabricators . | . . . . . . . . Repair Stations . | . . . . . . . . Recycling Units . | . . . . . . . . Scanalyzers . | . . . . . . . . Garrison Access . | . . . . . . . . Data Cores Recovered . | . . . . . . . . Used . | . . . . . . . . Hacking Detections 21 | . 3 . 14 . . . 4 Full Trace Events 3 | . . . 3 . . . . Feedback Events . | . . . . . . . . Feedback Blocked . | . . . . . . . . Robot Schematics Acquired . | . . . . . . . . Robots Built . | . . . . . . . . Authchips . | . . . . . . . . Time . | . . . . . . . . Total Robot Build Rating . | . . . . . . . . Part Schematics Acquired 5 | . . . 5 . . . . Parts Built . | . . . . . . . . Authchips . | . . . . . . . . Time . | . . . . . . . . Total Part Build Rating . | . . . . . . . . Parts Repaired 3 | . . . 3 . . . . Time 213 | . . . 213 . . . . Parts Recycled . | . . . . . . . . Recycled Matter . | . . . . . . . . Retrieved Matter . | . . . . . . . . Retrieved Components . | . . . . . . . . Parts Scanalyzed 5 | . . . 5 . . . . Part Schematics Acquired 5 | . . . 5 . . . . Parts Damaged . | . . . . . . . . Bothacking | -11 -10 -10 -9 -9 -9 -8 -8 ------------ Run | Yrd Mat Min Mat Min Exi Min Mat Used RIF Installer . | . . . . . . . . Robots Hacked . | . . . . . . . . Non-combat . | . . . . . . . . Combat . | . . . . . . . . Robot Hacks Applied . | . . . . . . . . Relay Couplers Released . | . . . . . . . . Fabnet Peak Effective % . | . . . . . . . . Robots Rewired . | . . . . . . . . Allies Hacked . | . . . . . . . . Hacks Repelled . | . . . . . . . . Allies | -11 -10 -10 -9 -9 -9 -8 -8 -------- Run | Yrd Mat Min Mat Min Exi Min Mat Total Allies 3 | . . 3 . . . . . Largest Group 3 | . . 3 . . . . . Highest-Rated Group 40 | . . 40 . . . . . Highest-Rated Ally 16 | . . 16 . . . . . Total Orders . | . . . . . . . . Ally Attacks 18 | . . 18 . . . . . Total Damage 187 | . . 187 . . . . . Kills 2 | . . 2 . . . . . Allies Corrupted . | . . . . . . . . Allies Melted . | . . . . . . . . Intel | -11 -10 -10 -9 -9 -9 -8 -8 ------- Run | Yrd Mat Min Mat Min Exi Min Mat Robot Analysis Total . | . . . . . . . . Derelict Logs Recovered 3 | . . 2 . 1 . . . Drone Launches . | . . . . . . . . Drone Recoveries . | . . . . . . . . Exploration | -11 -10 -10 -9 -9 -9 -8 -8 ------------- Run | Yrd Mat Min Mat Min Exi Min Mat Turns Passed 6480 | 40 1024 1094 2689 350 427 357 499 Spaces Moved 4010 | 38 761 511 1665 241 335 214 245 Core 20 | 12 3 . 5 . . . . Treads . | . . . . . . . . Legs . | . . . . . . . . Wheels 3990 | 26 758 511 1660 241 335 214 245 Hover . | . . . . . . . . Flight . | . . . . . . . . Fastest Speed 50 | 50 90 110 110 110 125 125 110 Average Speed 114 | 77 110 115 113 113 125 125 122 Slowest Speed 1000 | 90 850 140 1000 125 125 125 170 Overloaded Moves . | . . . . . . . . Propulsion Burnouts . | . . . . . . . . Robots Hopped . | . . . . . . . . Cave-ins Triggered . | . . . . . . . . Exploration Rate (%) 60 | 4 98 78 99 53 77 42 32 Regions Visited 7 Branch Regions 4 Pre-discovered Areas 2 | . . 1 . . 1 . . Known Exits Taken . | . . . . . . . . Unknown Exits Taken 7 | 1 1 1 1 1 1 1 . Scrap Searched 3 | . . 1 . 1 . 1 . Spaces Dug . | . . . . . . . . Terrain Destroyed 14 | . . . . . . 14 . Melee . | . . . . . . . . Projectile . | . . . . . . . . AOE 14 | . . . . . . 14 . Terrain Rammed . | . . . . . . . . Walls Destroyed . | . . . . . . . . Machines Disabled . | . . . . . . . . Actions | -11 -10 -10 -9 -9 -9 -8 -8 --------- Run | Yrd Mat Min Mat Min Exi Min Mat Total 5397 | 47 862 994 2255 302 339 259 339 Wait 948 | . 25 468 378 44 . 15 18 Move 4003 | 37 760 510 1664 240 334 213 245 Hop . | . . . . . . . . Pick Up 70 | 5 16 3 37 4 . 3 2 Fast Attach 11 | 2 3 . 5 1 . . . Attach 31 | 3 2 2 8 . . 2 14 Detach 1 | . . . 1 . . . . Swap 32 | . 7 . 20 . 2 1 2 Drop 47 | . 7 . 31 4 1 2 2 Fire 254 | . 42 11 111 9 2 23 56 Melee . | . . . . . . . . Ram . | . . . . . . . . Kick . | . . . . . . . . Crush . | . . . . . . . . Escape Stasis . | . . . . . . . . Rewire . | . . . . . . . . Trap . | . . . . . . . . Miscellaneous . | . . . . . . . . Route ------- -11/Scrapyard -10/Materials (discovered 5 exits: *Mat x3 / *Min x2) -10/Mines -9/Materials (discovered 5 exits: *Mat x3 / [*Min x2]) -9/Mines (discovered 2 exits: *Mat / *Exi) -9/Exiles (discovered 2 exits: [*Min x2]) -8/Mines -8/Materials (discovered 1 exit: [*Fac]) History --------- Turn | Location | Event 8 | -11/Scrapyard | Discovered new exit (range 16) 41 | -11/Scrapyard | Entered Materials 160 | -10/Materials | Discovered new exit (range 16) 281 | -10/Materials | Discovered new exit (range 15) 309 | -10/Materials | Build established: Mutant 399 | -10/Materials | Discovered new exit (range 11) 720 | -10/Materials | Discovered new exit (range 4) 900 | -10/Materials | Discovered new exit (range 13) 1065 | -10/Materials | Entered Mines 1231 | -10/Mines | Core integrity fell below 50% 1254 | -10/Mines | Assembled infested the area 1259 | -10/Mines | Assisted by a Guerilla fighting off Assembled 1267 | -10/Mines | Assisted by bots powering up and referring to "LRC-V3" 1306 | -10/Mines | Found a damaged Exp. Sensor Array with a note attached 1313 | -10/Mines | Found Prototype Device 1339 | -10/Mines | Lost 3 allies 2097 | -10/Mines | Discovered new exit (range 15) 2126 | -10/Mines | Learned Materials stockpile data 2143 | -10/Mines | Found the Drone Emporium 2152 | -10/Mines | Found Prototype Device 2159 | -10/Mines | Entered Materials 2159 | -9/Materials | Evolved 2 slots: Utility x2 2159 | -9/Materials | Identified Bomb Drone Bay 2161 | -9/Materials | Identified Exp. Sensor Array 2699 | -9/Materials | Discovered new exit (range 14) 3244 | -9/Materials | Discovered new exit (range 12) 3359 | -9/Materials | Discovered new exit (range 5) 3519 | -9/Materials | Repaired Broken Exp. Sensor Array 3973 | -9/Materials | Repaired Imp. Medium Laser 4001 | -9/Materials | Repaired Wheel 4198 | -9/Materials | Discovered new exit (range 7) 4460 | -9/Materials | Discovered new exit (range 9) 4848 | -9/Materials | Entered Mines 4888 | -9/Mines | Received a Rocket Launcher from a helpful Derelict 4903 | -9/Mines | Learned Materials terminal intel 4903 | -9/Mines | Discovered new exit (range 9) 5141 | -9/Mines | Core integrity fell below 50% 5184 | -9/Mines | Deemed a non-threat by the Exiles lab entrance 5184 | -9/Mines | Discovered new exit (range 5) 5198 | -9/Mines | Entered Exiles 5198 | -9/Exiles | Found Exiles lab destroyed 5220 | -9/Exiles | Discovered new exit (range 15) 5516 | -9/Exiles | Learned location of Zion (-6) 5615 | -9/Exiles | Discovered new exit (range 10) 5625 | -9/Exiles | Entered Mines 5968 | -8/Mines | Discovered new exit (range 8) 5982 | -8/Mines | Entered Materials 5982 | -8/Materials | Evolved 2 slots: Propulsion x1, Utility x1 5983 | -8/Materials | Loaded intel: 12 terminal locations 6116 | -8/Materials | Lost 3 parts (1n2u) 6394 | -8/Materials | Discovered new exit (range 11) 6468 | -8/Materials | Core integrity fell below 50% 6481 | -8/Materials | Self-destructed Last Messages --------------- 06461_ Wheel destroyed. 06461_ Adv. Beam Cannon destroyed. 06463_ Penetrated by Slug. 06466_ Hvy. Laser destroyed. 06467_ Slug penetrates Wall. 06467_ Knocked back. 06469_ Penetrated by Slug. 06470_ Imp. Targeting Computer destroyed. 06472_ Penetrated by Slug. 06472_ Exp. Sensor Array destroyed. 06473_ Adv. Beam Cannon destroyed. 06473_ Penetrated by Slug. 06474_ U-05 Engineer builds a Wall. 06475_ Penetrated by Slug. 06475_ Knocked back. 06478_ Repair Station disabled. 06478_ Backup Plating I tumbles out of repair station. 06478_ Backup Propulsion I tumbles out of repair station. 06479_ Penetrated by Slug. 06479_ W-25 Informer sends out distress signal. Map ----- +----------------------------------------------------+ | ???????????????????????????????????????????? | | ???????????????????????????????????????????? | | ???????????????????????????????????????????? | | ???????????????????????????????????????????? | | ???????????????????????????????????????????? | | ???????????????????????????????????????????? | | ???????????????????????????????????????????? | | ???????????????????????????????????????????? | | ???????????????????????????????????????????? | | ???????????????????????????????????????????? | | ???????????????????????????????????????????? | | ???????????????????????????????????????????? | | ???????????????????????????????????????????? | | ???????????????????????????????????????????? | | ???????????????????????????????????????????? | | ???????????????????????????????????????????? | | ???????????????????????????????????????????? | | ???????????????????????????????????????????? | | ???????????????????????????????????????????? | | ???????????????????????????????????????????? | | ????????????????????##########?????????????? | | ????????????????????# ]#?????????????? | | ????????????????????# """ #?????????????? | | ????????????????????# "R" #?????????????? | | ????????????????????# "! #?????????????? | | ???????????????#????# =%@ #?????????????? | | ???????????????# ???#! %% " #?????????????? | | ???????????????# #??# w " #?????????????? | | ???????????????+ gx % %" #?????????????? | | ???????????????# # u xH #?????????????? | | ???????????????# ####/#####?????????????? | | ???????????????# % ##### #??????? | | ???????? + % #??????? | | ???????????"" # % %##### #??????? | | ???????????????######## g #????????????????? | | ??????????????????????# #????????????????? | | ??????????????????##### #????????????????? | | ??????????????????#!! #????????????????? | | ??????????????????#!! #########????????? | | ??????????????????#!! ## == ?????????? | | ??????????????????#!! ## == ?????????? | | ??????????????????#]] #? == ??????????? | | ??????????????????#]] #? ??????????? | | ???????????############ #?? ???????????? | | ???????????# * ]## ##? ???????????? | | ??????????+ # ###+####????????? | | ############ """ """ # #????????? | | ## # """ """ + T ! < #????????? | | T" ## + """ """ # #????????? | | "" ## #![%= # !###+####????????? | +----------------------------------------------------+ Best States ------------- Heat Dissipation 45 Energy Generation 14 Energy Capacity 280 Matter Stores 300 Matter Capacity 300 Sight Range 16 Robot Scan Range 20 Terrain Scan Density 10 Base Temperature (-) 100 Armor Coverage 375 Core Shielding 20 Evasion (%) 50 Targeting Accuracy 6 Item Schematics ----------------- Hcp. Storage Unit | -9/Materials | Scanalyzed Imp. Medium Laser | -9/Materials | Scanalyzed Hcp. Matter Pod | -9/Materials | Scanalyzed Cld. Ion Engine | -9/Materials | Scanalyzed Wheel | -9/Materials | Scanalyzed Robot Schematics ------------------ None Fabricated ------------ Nothing Alien Tech Used ----------------- None Achievements -------------- None Challenges ------------ None Game ------ Seed TractorMicrowarpArray Manual? 0 Play Time 00:55:15 Cumulative 189.9 hours Start 2024.03.22 @ 18:01:56 End 2024.03.22 @ 19:22:03 Sessions 1 Manual Loads 0 Difficulty Rogue Special Mode None Game No. 136 Rogue 124 Adventurer 12 Explorer 0 Win Type - Total 1 Types 1/0/0/0/0/0/0/0/0 Lore% 26 Gallery% 42 Achievement% 32 Wizard Run 0 Options --------- Layout 1 ASCII 0 Keyboard 0 Movement Mouse Keybinds 0 Fullscreen 1 Font 32/SmallcapsGlow Map View 77x35 Zoom Use 0% Tactical HUD 1 Map Filters NONE Filters NONE Steam 1 RUN: 6c43e274-b337-449b-a8ca-62d428578df5